Cogmind - Beta 14 @@@ ROGUE MODE // 2025.03.09 @ 23:03:08 Player: mathSq Result: Destroyed by as-73145 with Assembled Heavy Rifle Performance ------------- Evolutions (0) 0 Regions Visited (2) 400 Robots Destroyed (21) 105 Value Destroyed (395) 395 Prototype IDs (3) 60 Alien Tech Used (0) 0 Bonus (0) 0 TOTAL SCORE: 960 Bonus ------- None Cogmind --------- Core Integrity 0/250 Matter 284/300 Energy 123/125 System Corruption 13% Temperature Cool (0) Movement Treading (160) Location -10/Mines Parts ------- > --- POWER (1) -------- Light Ion Engine > --- PROPULSION (2) --- Light Treads Light Treads > --- UTILITY (2) ------ Large Storage Unit Sensor Drone Bay (7/20) > --- WEAPON (2) ------- Light Assault Rifle Light Assault Rifle > --- INVENTORY (15) --- Light Ion Engine Aluminum Leg Aluminum Leg Flight Unit Flight Unit Flight Unit Flight Unit Small Storage Unit Large Storage Unit Peak State ------------ > --- POWER ------------ Ion Engine > --- PROPULSION ------- Light Treads Light Treads > --- UTILITY ---------- Large Storage Unit Sensor Drone Bay > --- WEAPON ----------- Medium Laser Light Cannon > --- INVENTORY -------- Light Ion Engine Light Ion Engine Light Treads Light Treads Aluminum Leg Aluminum Leg Flight Unit Flight Unit Flight Unit Flight Unit Small Storage Unit Large Storage Unit Medium Laser Light Assault Rifle Light Assault Rifle [Rating: 15] Favorites ----------- Power Ion Engine Engine Ion Engine Propulsion Light Treads Treads Light Treads Flight Unit Flight Unit Utility Large Storage Unit Device Sensor Drone Bay Storage Large Storage Unit Protection Light Armor Plating Weapon Medium Laser Energy Gun Medium Laser Ballistic Gun Light Assault Rifle Ballistic Cannon Light Cannon Build | -11 -10 -10 ------- Run | Yrd Mat Min Slots Evolved . | . . . Power . | . . . Propulsion . | . . . Utility . | . . . Weapon . | . . . Parts Attached 24 | 7 7 10 Power 3 | 1 1 1 Engine 3 | 1 1 1 Core . | . . . Reactor . | . . . Propulsion 7 | 2 1 4 Treads 5 | 2 1 2 Leg . | . . . Wheel . | . . . Hover . | . . . Flight 2 | . . 2 Utility 4 | 1 2 1 Device 1 | . . 1 Storage 2 | 1 1 . Processor . | . . . Hackware . | . . . Protection 1 | . 1 . Artifact . | . . . Weapon 10 | 3 3 4 Energy Gun 6 | 3 1 2 Energy Cannon . | . . . Ballistic Gun 2 | . . 2 Ballistic Cannon 2 | . 2 . Launcher . | . . . Special Weapon . | . . . Impact Weapon . | . . . Slashing Weapon . | . . . Piercing Weapon . | . . . Special Melee Weapon . | . . . Unidentified Prototypes 1 | . . 1 Parts Lost 6 | . 1 5 Power 1 | . . 1 Propulsion 1 | . . 1 Utility 1 | . 1 . Weapon 3 | . . 3 Highest Loss Streak 3 | . 1 3 To Critical Strikes . | . . . Average Slot Usage (%) 90 | . 91 89 Engine 14 | . 14 14 Treads 26 | . 26 25 Device 3 | . . 8 Storage 16 | . 18 14 Protection 2 | . 3 . Energy Gun 13 | . 14 10 Ballistic Gun 1 | . . 3 Ballistic Cannon 11 | . 13 10 Peak Build Rating 15 | 6 8 15 Average Rating 8 | 4 7 11 On Entrance 4 | . 6 7 Naked Turns . | . . . Heaviest Build 44 | 14 35 44 Greatest Support 40 | 40 40 40 Greatest Overweight (x) 4 | 1 1 4 Average Overweight (x) . | . . . Largest Inventory Capacity 15 | 8 15 15 Average Capacity 14 | 7 14 15 Most Carried 15 | 6 15 15 Average Carried 11 | 3 10 13 Final Capacity 15 | 8 15 15 Final Carried 15 | 6 15 9 Class Distribution -------------------- 100% | Mutant Dominant Class ---------------- Mutant | -10/Materials Mutant | -10/Mines Resources | -11 -10 -10 ----------- Run | Yrd Mat Min Matter Collected 620 | 215 284 121 Remotely . | . . . Salvage Created 713 | . 574 139 Parts 32 | . 27 5 Haulers Intercepted 2 | . 2 . Recyclers Shooed 3 | . 3 . Parts Field Recycled . | . . . Retrieved Matter . | . . . Parts Self-Destructed . | . . . Prevented . | . . . Kills | -11 -10 -10 ------- Run | Yrd Mat Min Combat Hostiles Destroyed 17 | . 7 10 Guns 8 | . 3 5 Cannons 8 | . 4 4 Classes Destroyed 9 | . 7 2 Worker 2 | . 2 . Hauler 2 | . 2 . Recycler 3 | . 3 . Operator 1 | . 1 . Watcher 1 | . 1 . Swarmer 5 | . 2 3 Grunt 5 | . 5 . Demolisher 2 | . . 2 Assembled 5 | . . 5 Best Kill Streak 4 | . 4 3 Combat Bots Only 3 | . 3 3 Max Kills in Single Turn 2 | . 2 1 Gunslinging . | . . . Exploded . | . . . Melee . | . . . Uniques/NPCs Destroyed . | . . . Combat | -11 -10 -10 -------- Run | Yrd Mat Min Hostile Shots Fired 114 | . 47 67 Missed 27 | . 10 17 Damage Taken 1324 | . 362 962 Core 258 | . 57 201 Absorbed by Shields . | . . . Core Remaining (%) 100 | 100 . . Volleys Fired 62 | . 41 21 Largest 2 | . 2 2 Hottest 85 | . 85 85 Shots Fired 120 | . 82 38 Gun 72 | . 41 31 Cannon 48 | . 41 7 Launcher . | . . . Special . | . . . Kinetic 67 | . 41 26 Thermal 53 | . 41 12 Explosive . | . . . Electromagnetic . | . . . Robot Hit Streak 13 | . 13 7 Robot Miss Streak 6 | . 6 3 Penetration Max . | . . . Secondary Targets 3 | . . 3 Max Gunslinging Chain 1 | . . 1 Shots Hit Robots 75 | . 50 25 Core Hits 41 | . 24 17 Critical Kills 1 | . . 1 Critical Parts Destroyed . | . . . Critical Strikes 7 | . 4 3 Burn 5 | . 3 2 Destroy 1 | . . 1 Blast 1 | . 1 . Melee Attacks . | . . . Impact . | . . . Slashing . | . . . Piercing . | . . . Sneak Attacks . | . . . Combat Hostiles . | . . . Follow-up Attacks . | . . . Damage Inflicted 1103 | . 815 288 Guns 586 | . 385 201 Cannons 517 | . 430 87 Explosions . | . . . Melee . | . . . Ramming . | . . . Kinetic 619 | . 430 189 Thermal 484 | . 385 99 Explosive . | . . . Electromagnetic . | . . . Impact . | . . . Slashing . | . . . Piercing . | . . . Highest Corruption 13 | . . 13 Average Corruption 12 | . . 12 Corruption Purged . | . . . Corruption Blocked . | . . . Effects 6 | . . 6 Message Errors 2 | . . 2 Heat Flow Errors 1 | . . 1 Parts Rejected 1 | . . 1 Data Loss (minor) 1 | . . 1 Data Loss (major) 1 | . . 1 Overload Shots . | . . . Overflow Damage . | . . . Projectiles . | . . . Explosions . | . . . Melee . | . . . Knockbacks 5 | . 3 2 Impact . | . . . Kinetic 4 | . 3 1 Secondary 1 | . . 1 Self-Inflicted Damage . | . . . Shots . | . . . Rammed . | . . . Targets Rammed . | . . . Kicked . | . . . Crushed . | . . . Highest Temperature 297 | . 297 280 Average Temperature 85 | . 90 72 Received Heat Transfer 120 | . 120 . Effects 2 | . 2 . Energy Bleed 2 | . 2 . Siege Activations . | . . . Robots Corrupted 1 | . . 1 Combat Hostiles 1 | . . 1 Parts Fried 1 | . . 1 Impact Corruptions 1 | . . 1 Robots Melted . | . . . Combat Hostiles . | . . . Parts Melted 2 | . 1 1 Heat Transferred 1813 | . 1369 444 Parts Sabotaged . | . . . Parts Stolen . | . . . Parts Stripped . | . . . Power Chain Reactions . | . . . Alert | -11 -10 -10 ------- Run | Yrd Mat Min Peak Influence 220 | . 220 97 Initial 27 | . . 27 Average 54 | . 69 43 Maximum Alert Level 1 | . 1 . Low Security (%) 97 | 100 96 100 Level 1 2 | . 3 . Level 2 . | . . . Level 3 . | . . . Level 4 . | . . . Level 5 . | . . . High Security . | . . . Max Security . | . . . Squads Dispatched 2 | . 2 . Investigation . | . . . Extermination . | . . . Reinforcement 2 | . 2 . Assault . | . . . Garrison . | . . . Intercept . | . . . Searches Triggered . | . . . Construction Impeded . | . . . Haulers Reinforced . | . . . Active Scanning Responses . | . . . Cargo Convoy Interrupts . | . . . Stealth | -11 -10 -10 --------- Run | Yrd Mat Min Distress Signals 1 | . . 1 Communications Jammed . | . . . Distress Signals . | . . . Times Spotted 31 | . 16 15 Peak Tracking Total 5 | . 4 5 Tactical Retreats 6 | . 2 4 Traps | -11 -10 -10 ------- Run | Yrd Mat Min Traps Triggered 2 | . 2 . Indirectly . | . . . Trap Hack Attempts . | . . . Triggered . | . . . Disarmed . | . . . Reprogrammed . | . . . Reused . | . . . Traps Extracted . | . . . Installed . | . . . Triggered . | . . . Machines | -11 -10 -10 ---------- Run | Yrd Mat Min Machines Disabled . | . . . Max in Single Turn . | . . . Machines Repaired . | . . . Machines Dismantled . | . . . Machines Sabotaged . | . . . Overloaded Fab Kills . | . . . Hacking | -11 -10 -10 --------- Run | Yrd Mat Min Machines Accessed 2 | . 1 1 Terminals 1 | . 1 . Fabricators . | . . . Repair Stations . | . . . Recycling Units . | . . . Scanalyzers . | . . . Garrison Access . | . . . Total Hacks 4 | . 3 1 Successful 4 | . 3 1 Failed . | . . . Catastrophic . | . . . Database Lockouts . | . . . Manual 3 | . 3 . Terminals 3 | . 3 . Fabricators . | . . . Repair Stations . | . . . Recycling Units . | . . . Scanalyzers . | . . . Garrison Access . | . . . Terminal Hacks 4 | . 3 1 Robot Analysis 1 | . 1 . Prototype ID Bank 1 | . 1 . Open Door 1 | . . 1 Hauler Manifests 1 | . 1 . Fabricator Hacks . | . . . Repair Station Hacks . | . . . Recycling Unit Hacks . | . . . Scanalyzer . | . . . Garrison Access Hacks . | . . . Unauthorized Hacks . | . . . Terminals . | . . . Fabricators . | . . . Repair Stations . | . . . Recycling Units . | . . . Scanalyzers . | . . . Garrison Access . | . . . Data Cores Recovered . | . . . Used . | . . . Hacking Detections 1 | . 1 . Full Trace Events . | . . . Feedback Events . | . . . Feedback Blocked . | . . . Robot Schematics Acquired . | . . . Robots Built . | . . . Authchips . | . . . Time . | . . . Total Robot Build Rating . | . . . Part Schematics Acquired . | . . . Parts Built . | . . . Authchips . | . . . Time . | . . . Total Part Build Rating . | . . . Parts Repaired . | . . . Time . | . . . Parts Recycled . | . . . Recycled Matter . | . . . Retrieved Matter . | . . . Retrieved Components . | . . . Parts Scanalyzed . | . . . Part Schematics Acquired . | . . . Parts Damaged . | . . . Bothacking | -11 -10 -10 ------------ Run | Yrd Mat Min Used RIF Installer . | . . . Robots Hacked . | . . . Non-combat . | . . . Combat . | . . . Robot Hacks Applied . | . . . Relay Couplers Released . | . . . Fabnet Peak Effective % . | . . . Robots Rewired . | . . . Allies Hacked . | . . . Hacks Repelled . | . . . Allies | -11 -10 -10 -------- Run | Yrd Mat Min Total Allies . | . . . Largest Group . | . . . Highest-Rated Group . | . . . Highest-Rated Ally . | . . . Total Orders . | . . . Ally Attacks . | . . . Total Damage . | . . . Kills . | . . . Allies Corrupted . | . . . Allies Melted . | . . . Intel | -11 -10 -10 ------- Run | Yrd Mat Min Robot Analysis Total 1 | . 1 . Derelict Logs Recovered 1 | . . 1 Drone Launches 23 | . . 23 Drone Recoveries 10 | . . 10 Exploration | -11 -10 -10 ------------- Run | Yrd Mat Min Turns Passed 1218 | 79 634 505 Spaces Moved 535 | 42 277 216 Core 3 | 3 . . Treads 527 | 39 277 211 Legs . | . . . Wheels . | . . . Hover . | . . . Flight 5 | . . 5 Fastest Speed 50 | 50 160 160 Average Speed 173 | 153 164 188 Slowest Speed 357 | 160 240 357 Overloaded Moves . | . . . Propulsion Burnouts . | . . . Robots Hopped . | . . . Cave-ins Triggered . | . . . Exploration Rate (%) 24 | 4 33 37 Regions Visited 2 Branch Regions 1 Pre-discovered Areas . | . . . Known Exits Taken . | . . . Unknown Exits Taken 2 | 1 1 . Scrap Searched . | . . . Spaces Dug . | . . . Terrain Destroyed . | . . . Melee . | . . . Projectile . | . . . AOE . | . . . Terrain Rammed . | . . . Walls Destroyed . | . . . Machines Disabled . | . . . Actions | -11 -10 -10 --------- Run | Yrd Mat Min Total 707 | 54 372 281 Wait 62 | . 36 26 Move 533 | 41 276 216 Hop . | . . . Pick Up 19 | 5 10 4 Fast Attach 12 | 7 4 1 Attach 6 | . . 6 Detach 1 | 1 . . Swap 6 | . 3 3 Drop 6 | . 2 4 Fire 62 | . 41 21 Melee . | . . . Ram . | . . . Kick . | . . . Crush . | . . . Escape Stasis . | . . . Rewire . | . . . Trap . | . . . Miscellaneous . | . . . Route ------- -11/Scrapyard -10/Materials (discovered 2 exits: *Min x2) -10/Mines (discovered 2 exits: [*Mat] / [*Sub]) History --------- Turn | Location | Event 28 | -11/Scrapyard | Discovered new exit (range 15) 80 | -11/Scrapyard | Entered Materials 304 | -10/Materials | Build established: Mutant 364 | -10/Materials | Discovered new exit (range 9) 626 | -10/Materials | Discovered new exit (range 13) 714 | -10/Materials | Entered Mines 828 | -10/Mines | Discovered new exit (range 3) 875 | -10/Mines | Learned Materials trap positions 896 | -10/Mines | Assembled infested the area 901 | -10/Mines | Assisted by a Guerilla fighting off Assembled 909 | -10/Mines | Found the Drone Emporium 922 | -10/Mines | Found Prototype Device 922 | -10/Mines | Identified Sensor Drone Bay 956 | -10/Mines | Core integrity fell below 50% 982 | -10/Mines | Lost 14 allies 1011 | -10/Mines | Discovered new exit (range 10) 1083 | -10/Mines | System corruption reached 10% 1113 | -10/Mines | Lost 3 parts (1n2w) 1197 | -10/Mines | Core integrity fell below 20% 1219 | -10/Mines | Destroyed by as-73145 with Assembled Heavy Rifle Last Messages --------------- 01130_ Sensor Drone retrieved by Sensor Drone Bay. 01136_ Acquired 20 matter. 01141_ Med. Laser destroyed. 01146_ Acquired 22 matter. 01150_ K-01 Serf collects debris. 01151_ System corrupted: Heat flow error (+298). 01151_ Acquired 5 matter. 01155_ Sensor Drone retrieved by Sensor Drone Bay. 01165_ K-01 Serf destroyed. 01172_ System corrupted: Component data lost. 01176_ Sensor Drone retrieved by Sensor Drone Bay. 01198_ as-07247 destroyed. 01198_ Switching to secondary target: as-29686. 01200_ Acquired 13 matter. 01202_ R%GJZWLE/R TZC4R,B3GV3R4=YH|SJDEXGB#7 01212_ Ion Engine destroyed. 01216_ as-62168 destroyed. 01219_ as-29686 suffers critical hit (Destroy). 01219_ as-29686 destroyed. 01219_ Switching to secondary target: as-73145. Map ----- +----------------------------------------------------+ | ?????????????????????????????????????????????????? | | ?????????????????????????????? ??????????????????? | | ?????????????????????????????? ????????????????? | | ????????????????????????????### ????????????????? | | ???????????????????????????## ????????????????? | | ???????????????????????????? ????????????????? | | ???????????????????????????? ???????????????? | | ????????????????????????????? ?????????????### | | ?????????????????????????????? ????????????## | | ?????????????????????????????? ????????##### | | ???????????????????????%??????? ????????# | | ???????????????????????*???????# ????????# ## | | ??????????????????????? ##?????# ????????# ### | | ??????????????????????? ##???# ######### #?## " | | ?????????????????????? ##???# #?## " | | ????????????????????%""" ???## ######## ### " | | ?????????????????????""" =??## #??????# | | ?????????????????????"" %### ######## #### | | ???????????????????? % #?# # | | ??????????????????? * ######### #?# # | | ???????????????????? % ######????????# #?# # | | ???????????????????? % % ???????????????# #?# # | | ????????????????????? a ???????????????#%=#?# # | | ?????????????????????### #???????????????#%=#?# # | | ????????????????????????# #???????????????#%*#?#!# | | ?????????????????????####@#???????????????#* #?#=# | | ????????????????###### ##%#################% #?#=* | | ???????????????## # =%= % #?##! | | ??????????????## # #!* ################# #??# | | ??????????????# # #=%# ###?## ## #????# ##?#! | | ??????????????## ##%!==# ### ##??## ###! | | ??????????????# =!%! # ## # #?## %##% | | ??????????????# = !*| ### ###### % ! | | ??????????????# =*=% !| !% | | ??????????????# ## |%! *%! % | | ??????????????# # # ######= ## #### | | ??????????????######### # # ######??## | | ?????????????????????### ##### ### #????????# | | ???????????????????????#####???####### ##???????? | | ????????????????????????????????????# #???????? | | ????????????????????????????????????# #???????? | | ????????????????????????????????????# #???????? | | ????????????????????????????????????< ####???????? | | ???????????????????????????????????####??????????? | | ?????????????????????????????????????????????????? | | ?????????????????????????????????????????????????? | | ?????????????????????????????????????????????????? | | ?????????????????????????????????????????????????? | | ?????????????????????????????????????????????????? | | ?????????????????????????????????????????????????? | +----------------------------------------------------+ Best States ------------- Heat Dissipation 25 Energy Generation 10 Energy Capacity 250 Matter Stores 300 Matter Capacity 300 Sight Range 16 Terrain Scan Density 10 Armor Coverage 150 Evasion (%) 40 Recoil Reduction 2 Item Schematics ----------------- None Robot Schematics ------------------ None Fabricated ------------ Nothing Alien Tech Used ----------------- None Achievements -------------- Release The Drones! Challenges ------------ None Game ------ Seed CentriumFireThruster Manual? 0 Play Time 00:12:22 Cumulative 7.0 hours Start 2025.03.09 @ 22:51:58 End 2025.03.09 @ 23:03:08 Sessions 1 Manual Loads 0 Difficulty Rogue Special Mode None Game No. 8 Rogue 8 Adventurer 0 Explorer 0 Win Type - Total 0 Types 0/0/0/0/0/0/0/0/0 Lore% 13 Gallery% 14 Achievement% 17 Wizard Run 0 Options --------- Layout 0 ASCII 0 Keyboard 0 Movement Vi Keybinds 0 Fullscreen 1 Font 24/Tamsyn Map View 76x50 Zoom Use 0% Tactical HUD 1 Map Filters NONE Filters NONE Steam 1 RUN: 8f648eaa-d911-49d5-a263-f5110ffdedaa